bitfinex-derivatives/quotes_SOLF0:USTF0_20251024
["timestamp","ask_amount","ask_price","bid_price","bid_amount"]
[1761309054450,9.60631903,196.03,195.47,120.31299985]
[1761309054451,9.60631903,196.24,195.47,120.31299985]
[1761309054646,124.0,196.23,195.7,9.60631903]
[1761309054850,9.60631903,196.14,195.63,9.60631903]
[1761309055048,9.60631903,196.09,195.74,9.60631903]
[1761309055356,9.60631903,196.0,195.53,42.27435074]
[1761309055660,9.60631903,196.05,195.71,9.60631903]
[1761309055855,4.5884,196.14,195.65,62.0]
[1761309056060,71.3756,196.13,195.65,62.0]
[1761309056261,9.60631903,196.24,195.45,94.34927]
[1761309056262,4.596,195.81,195.45,10.68927]
[1761309056454,124.0,195.95,195.45,10.68927]
[1761309056761,117.52,196.1,195.45,52.96362074]
[1761309056960,9.60631903,195.79,195.45,52.96362074]
[1761309057155,124.0,196.01,195.45,52.96362074]
[1761309057352,9.60631903,195.75,195.45,52.96362074]
[1761309057552,9.60631903,195.63,195.45,52.96362074]
[1761309057855,9.60631903,195.58,195.45,52.96362074]
[1761309058161,9.60631903,195.58,195.45,10.68927]
[1761309058355,9.60631903,195.53,195.26,42.27435074]
[1761309058657,9.60631903,195.8,195.26,42.27435074]
[1761309058861,9.60631903,195.51,195.26,42.27435074]
[1761309059049,9.60631903,195.58,195.26,42.27435074]
[1761309059250,15.69269755,195.65,195.24,15.35187737]
[1761309059462,9.60631903,195.8,195.22,42.27435074]
[1761309059463,124.0,195.79,195.22,42.27435074]
[1761309059662,124.0,195.79,195.23,9.60631903]
[1761309059961,261.32,196.61,195.36,9.60631903]
[1761309060160,9.60631903,195.82,195.49,9.60631903]
[1761309060367,9.60631903,195.89,195.37,124.0]
[1761309060664,9.60631903,195.99,195.37,124.0]
[1761309060853,117.58,196.11,195.43,4.99931245]
[1761309061051,117.58,196.11,195.61,9.60631903]
[1761309061252,9.60631903,196.04,195.5,83.7]
[1761309061566,9.60631903,196.02,195.48,78.58585695]
[1761309061755,9.60631903,195.76,195.48,78.58585695]
[1761309061956,9.60631903,196.02,195.48,78.58585695]
[1761309062162,9.60631903,196.02,195.26,125.99435074]
[1761309062163,9.60631903,195.7,195.26,125.99435074]
[1761309062366,9.60631903,195.81,195.36,9.60631903]
[1761309062661,9.60631903,195.62,195.28,9.60631903]
[1761309062857,9.60631903,195.63,195.43,62.0]
[1761309063060,9.60631903,195.8,195.28,9.60631903]
[1761309063061,127.24631903,195.8,195.28,9.60631903]
[1761309063264,9.60631903,195.56,195.23,24.62559827]
[1761309063463,83.74,195.79,195.23,15.01927924]
[1761309063464,9.60631903,195.53,195.23,15.01927924]
[1761309063766,9.60631903,195.47,195.13,9.60631903]
[1761309064065,9.60631903,195.53,195.05,77.3377726]
[1761309064263,9.60631903,195.44,195.05,77.3377726]
[1761309064463,124.0,195.78,195.16,9.60631903]
[1761309065059,9.60631903,195.55,195.22,9.60631903]
[1761309065262,127.24631903,195.8,195.34,9.60631903]
[1761309065458,9.60631903,195.76,195.33,83.78]
[1761309065654,9.60631903,195.86,195.4,71.6399]
[1761309065862,9.60631903,195.9,195.58,9.60631903]
[1761309066164,9.60631903,195.83,195.62,62.0]
[1761309066363,9.60631903,196.02,195.5,9.60631903]
[1761309066667,9.60631903,195.85,195.48,9.60631903]
[1761309066868,9.60631903,195.79,195.48,9.60631903]
[1761309067070,9.60631903,196.24,195.63,9.60631903]
[1761309067260,9.60631903,195.89,195.44,117.68]
[1761309067461,93.38631903,196.24,195.65,9.60631903]
[1761309067664,207.78,196.23,195.58,9.60631903]
[1761309067865,9.60631903,195.95,195.54,4.6019]
[1761309068165,9.60631903,196.02,195.52,9.60631903]
[1761309068369,9.60631903,195.77,195.27,71.688]
[1761309068566,9.60631903,195.68,195.44,15.64460933]
[1761309068757,9.60631903,195.67,195.44,15.64460933]
[1761309068964,9.60631903,195.63,195.34,4.6067]
[1761309069276,9.60631903,195.51,195.17,9.60631903]
[1761309069570,9.60631903,195.43,195.19,42.27435074]
[1761309069766,50.79369774,195.99,195.19,42.27435074]
[1761309069963,9.60631903,195.8,195.19,42.27435074]
[1761309070164,9.60631903,195.58,195.18,15.21136359]
[1761309070360,9.60631903,195.44,195.09,42.27435074]
[1761309070560,2.96562627,195.58,195.12,9.60631903]
[1761309070758,9.60631903,195.51,195.22,9.60631903]
[1761309070960,9.60631903,195.8,195.26,9.60631903]
[1761309071162,9.60631903,195.8,195.31,9.60631903]
[1761309071366,36.14,195.86,195.24,124.0]
[1761309071557,9.60631903,195.55,195.23,83.78]
[1761309071756,15.1748967,195.7,195.19,9.60631903]
[1761309071967,9.60631903,195.55,195.24,9.60631903]
[1761309072169,9.60631903,195.8,195.19,9.60631903]
[1761309072170,9.60631903,195.49,195.19,9.60631903]
[1761309072362,9.60631903,195.49,195.25,62.0]
[1761309072560,9.60631903,195.44,195.16,83.8]
[1761309072867,9.60631903,195.58,195.16,83.8]
[1761309073072,9.60631903,195.39,195.16,83.8]
[1761309073272,9.60631903,195.41,195.16,83.8]
[1761309073469,9.60631903,195.49,195.18,9.60631903]
[1761309073774,9.60631903,195.46,195.17,9.60631903]
[1761309073973,9.60631903,195.52,195.16,83.8]
[1761309074166,117.72,195.64,195.18,9.60631903]
[1761309074470,9.60631903,195.51,195.23,9.60631903]
[1761309074673,9.60631903,195.46,195.17,9.60631903]
[1761309074872,9.60631903,195.52,195.22,9.60631903]
[1761309075174,9.60631903,195.46,195.17,9.60631903]
[1761309075374,117.72,195.64,195.17,9.60631903]
[1761309075566,9.60631903,195.51,195.23,62.0]
[1761309075869,117.72,195.64,195.23,62.0]
[1761309075870,9.60631903,195.8,195.3,9.60631903]
[1761309076068,9.60631903,195.64,195.35,9.60631903]
[1761309076266,15.50566566,195.76,195.4,9.60631903]
[1761309076466,9.60631903,195.63,195.2,117.76]
[1761309076662,9.60631903,195.8,195.21,33.69]
[1761309076869,9.60631903,195.8,195.37,9.60631903]
[1761309077067,9.60631903,195.69,195.37,9.60631903]
[1761309077270,9.60631903,195.7,195.38,4.6057]
[1761309077473,9.60631903,195.6,195.36,83.84]
[1761309077664,9.60631903,195.55,195.25,9.60631903]
[1761309077868,9.60631903,195.54,195.25,9.60631903]
[1761309078075,9.60631903,195.49,195.14,83.84]
[1761309078373,9.60631903,195.8,195.2,9.60631903]
[1761309078578,9.60631903,195.63,195.35,9.60631903]
[1761309078880,9.60631903,195.7,195.4,9.60631903]
[1761309079175,9.60631903,195.61,195.27,117.78]
[1761309079374,9.60631903,195.56,195.27,117.78]
[1761309079678,9.60631903,195.51,195.27,117.78]
[1761309079977,9.60631903,195.6,195.33,9.60631903]
[1761309080172,9.60631903,195.6,195.28,9.60631903]
[1761309080368,15.55,195.79,195.23,83.84]
[1761309080676,9.60631903,195.56,195.23,83.84]
[1761309080877,9.60631903,195.51,195.23,93.44631903]
[1761309081070,9.60631903,195.53,195.23,93.44631903]
[1761309081272,4.49199653,195.49,195.23,83.84]
[1761309081473,99.39,195.74,195.23,83.84]
[1761309081474,9.60631903,195.44,195.23,83.84]
[1761309081774,9.60631903,195.58,195.14,9.60631903]
[1761309081775,9.60631903,195.43,195.14,9.60631903]
[1761309081976,25.15631903,195.58,195.09,83.84]
[1761309082175,9.60631903,195.38,195.12,9.60631903]
[1761309082676,9.60631903,195.38,195.09,99.32736931]
[1761309082876,9.60631903,195.33,195.09,99.32736931]
[1761309083081,9.60631903,195.19,195.05,77.3377726]
[1761309083378,9.60631903,195.19,194.7,343.25931903]
[1761309083379,30.69439066,195.48,194.81,83.84]
[1761309083582,117.8,195.32,194.83,9.60631903]
[1761309083785,9.60631903,195.16,194.89,9.60631903]
[1761309083969,117.8,195.32,194.85,9.60631903]
[1761309084173,9.60631903,195.17,194.87,9.60631903]
[1761309084380,9.60631903,195.18,194.87,9.60631903]
[1761309084681,9.60631903,195.24,194.97,9.60631903]
[1761309084974,117.8,195.32,195.03,9.60631903]
[1761309084975,9.60631903,195.29,195.03,9.60631903]
[1761309085173,117.8,195.32,194.98,9.60631903]
[1761309085373,9.60631903,195.3,195.05,9.60631903]
[1761309085575,5.0,195.41,195.09,9.60631903]
[1761309085779,9.60631903,195.4,195.14,62.0]
[1761309086081,9.60631903,195.33,195.05,83.88]
[1761309086278,9.60631903,195.28,194.97,9.60631903]
[1761309086478,9.60631903,195.22,194.95,117.84]
[1761309086684,15.65191429,195.48,195.04,9.60631903]
[1761309086878,9.60631903,195.58,195.09,9.60631903]
[1761309087179,9.60631903,195.42,195.14,9.60631903]
[1761309087382,4.6025,195.52,195.19,9.60631903]
[1761309087383,9.60631903,195.46,195.19,9.60631903]
[1761309087682,9.60631903,195.4,195.1,9.60631903]
[1761309087980,15.23938195,195.52,195.15,9.60631903]
[1761309088178,9.60631903,195.45,195.16,4.6109]
[1761309088384,9.60631903,195.43,195.12,9.60631903]
[1761309088571,9.60631903,195.38,195.13,4.6115]
[1761309088776,9.60631903,195.36,195.1,15.22374083]
[1761309088979,9.60631903,195.36,195.07,9.60631903]
[1761309089175,14.97095241,195.52,195.11,62.0]
[1761309089380,9.60631903,195.44,195.17,9.60631903]
[1761309089577,9.60631903,195.58,195.05,83.9]
[1761309089778,4.6016,195.56,195.16,4.6109]
[1761309089982,9.60631903,195.39,195.16,4.6109]
[1761309090182,9.60631903,195.34,195.11,4.6121]
[1761309090378,9.60631903,195.28,195.07,19.98635907]
[1761309090589,9.60631903,195.28,195.07,14.98704662]
[1761309090778,9.60631903,195.28,195.05,83.9]
[1761309090974,9.60631903,195.37,195.1,9.60631903]
[1761309091177,15.6648323,195.52,195.15,4.611]
[1761309091378,9.60631903,195.43,195.16,9.60631903]
[1761309091783,9.60631903,195.58,195.21,4.6097]
[1761309091784,9.60631903,195.46,195.21,4.6097]
[1761309091977,9.60631903,195.58,195.21,4.6097]
[1761309092184,4.6008,195.6,195.18,9.60631903]
[1761309092388,117.84,195.67,195.17,83.9]
[1761309092389,9.60631903,195.53,195.25,9.60631903]
[1761309092688,9.60631903,195.48,195.29,62.0]
[1761309092879,9.60631903,195.53,195.29,62.0]
[1761309093080,9.60631903,195.58,195.31,9.60631903]
[1761309093386,9.60631903,195.64,195.39,4.6054]
[1761309093588,9.60631903,195.59,195.33,83.92]
[1761309093791,9.60631903,195.65,195.36,9.60631903]
[1761309094088,117.88,195.76,195.36,9.60631903]
[1761309094089,9.60631903,195.7,195.46,9.60631903]
[1761309094389,211.40631903,196.02,195.36,81.25731903]
[1761309094390,9.60631903,195.75,195.45,9.60631903]
[1761309094580,9.60631903,195.79,195.55,4.6016]
[1761309094888,9.60631903,196.02,195.55,9.60631903]
[1761309095094,4.5839,196.32,195.82,9.60631903]
[1761309095280,9.60631903,196.46,195.93,9.60631903]
[1761309095487,9.60631903,196.28,195.93,9.60631903]
[1761309095688,117.86,196.4,195.93,9.60631903]
[1761309095986,9.60631903,196.29,195.93,9.60631903]
[1761309096187,117.86,196.4,195.99,9.60631903]
[1761309096487,9.60631903,196.31,195.99,9.60631903]
[1761309096688,9.60631903,196.31,195.85,124.0]
[1761309096689,9.60631903,196.36,196.06,9.60631903]
[1761309096878,117.86,196.4,195.94,9.60631903]
[1761309096879,9.60631903,196.24,195.94,9.60631903]
[1761309097084,9.60631903,196.13,195.65,162.71568976]
[1761309097387,9.60631903,196.24,195.74,9.60631903]
[1761309097388,9.60631903,196.06,195.74,9.60631903]
[1761309097591,9.60631903,196.02,195.7,15.09664491]
[1761309097888,9.60631903,195.89,195.65,78.83568976]
[1761309098086,124.0,196.09,195.65,15.08057541]
[1761309098282,9.60631903,195.88,195.52,76.46714955]
[1761309098482,9.60631903,195.83,195.52,76.46714955]
[1761309098787,83.82,196.28,195.72,9.60631903]
[1761309098988,71.3651,196.16,195.72,9.60631903]
[1761309099191,71.3439,196.21,195.72,9.60631903]
[1761309099491,9.60631903,196.07,195.63,76.86]
[1761309099684,9.60631903,196.07,195.77,62.0]
[1761309099987,9.60631903,195.9,195.63,9.60631903]
[1761309100181,9.60631903,195.79,195.61,4.99931245]
[1761309100384,117.72,195.99,195.56,4.99931245]
[1761309100385,9.60631903,195.75,195.56,4.99931245]
[1761309100590,9.60631903,195.7,195.52,91.73108372]
[1761309100890,9.60631903,195.72,195.52,91.73108372]
[1761309101095,71.4786,195.84,195.52,15.26393417]
[1761309101286,9.60631903,195.66,195.22,117.72]
[1761309101590,81.09941903,195.8,195.29,9.60631903]
[1761309101591,71.5117,195.75,195.29,9.60631903]
[1761309101791,71.5117,195.75,195.0,50.84627999]
[1761309101792,9.60631903,195.58,194.98,117.72]
[1761309101995,9.60631903,195.44,195.14,9.60631903]
[1761309102191,117.72,195.63,195.24,9.60631903]
[1761309102394,71.5118,195.75,195.25,83.8]
[1761309102585,71.4859,195.82,195.31,9.60631903]
[1761309102586,9.60631903,195.62,195.31,9.60631903]
[1761309102886,4.5987,195.68,195.27,9.60631903]
[1761309103086,9.60631903,195.59,195.32,62.0]
[1761309103287,9.60631903,195.4,195.14,15.05387214]
[1761309103483,9.60631903,195.42,195.13,9.60631903]
[1761309103685,9.60631903,195.37,195.09,9.60631903]
[1761309103886,9.60631903,195.41,195.13,9.60631903]
[1761309104687,189.3014,195.62,195.18,14.21671903]
[1761309104889,9.60631903,195.58,195.23,71.7008]
[1761309105083,9.60631903,195.47,195.17,9.60631903]
[1761309105288,9.60631903,195.47,195.13,71.7343]
[1761309105289,71.5445,195.66,195.22,9.60631903]
[1761309105490,9.60631903,195.51,195.22,9.60631903]
[1761309105789,5.77191494,195.51,195.27,9.60631903]
[1761309105993,71.5289,195.7,195.29,9.60631903]
[1761309106180,9.60631903,195.57,195.29,9.60631903]
[1761309106385,9.60631903,195.52,195.3,62.0]
[1761309106994,71.5768,195.57,195.15,9.60631903]
[1761309107192,9.60631903,195.3,195.02,71.7778]
[1761309107383,9.60631903,195.32,195.05,4.6133]
[1761309107583,15.55,195.57,195.05,4.6133]
[1761309107788,9.60631903,195.35,195.09,9.60631903]
[1761309108291,15.55,195.51,195.02,71.7773]
[1761309108492,15.55,195.51,195.03,3.17]
[1761309108493,9.60631903,195.29,195.03,3.17]
[1761309108691,9.60631903,195.31,195.05,3.17]
[1761309108896,9.60631903,195.31,195.04,4.6137]
[1761309108897,9.60631903,195.41,195.13,3.17]
[1761309109194,9.60631903,195.36,195.13,3.17]
[1761309109392,1.9,195.37,195.13,3.17]
[1761309109590,9.60631903,195.32,195.06,9.60631903]
[1761309109795,99.41,195.49,194.94,71.8064]
[1761309109796,1.9,195.31,195.03,3.17]
[1761309109997,9.60631903,195.23,195.04,62.0]
[1761309110192,9.60631903,195.18,194.99,102.20932883]
[1761309110498,9.60631903,195.2,194.99,105.37932883]
[1761309111201,1.9,195.24,194.99,105.37932883]
[1761309111392,9.60631903,195.23,195.01,3.17]
[1761309111584,11.50631903,195.24,195.01,3.17]
[1761309111789,9.60631903,195.19,194.99,102.20932883]
[1761309112192,9.60631903,195.14,194.99,102.20932883]
[1761309112597,9.60631903,195.16,194.99,102.20932883]
[1761309112801,1.9,195.17,194.92,3.17]
[1761309112998,16.00829977,195.12,194.87,88.4777]
[1761309113208,16.00829977,195.15,194.89,74.9961]
[1761309113497,1.9,195.17,194.92,3.17]
[1761309113700,117.86,195.36,195.01,3.17]
[1761309113701,16.00829977,195.26,195.01,3.17]
[1761309113902,1.9,195.35,195.02,4.6142]
[1761309114108,16.00829977,195.19,194.92,3.17]
[1761309114301,17.90829977,195.19,194.93,76.4268]
[1761309114498,17.90829977,195.19,194.99,71.7881]
[1761309114704,16.00829977,195.19,194.98,3.17]
[1761309115002,1.9,195.28,195.01,4.6145]
[1761309115303,1.9,195.28,195.05,3.17]
[1761309115603,16.00829977,195.26,195.05,3.17]
[1761309115804,16.00829977,195.21,194.93,3.17]
[1761309116003,1.9,195.2,194.93,7.7863]
[1761309116302,16.00829977,195.14,194.93,7.7863]
[1761309116491,1.9,195.13,194.87,4.6177]
[1761309116696,1.9,195.13,194.91,3.17]
[1761309117197,17.90829977,195.08,194.86,4.6178]
[1761309117393,117.86,195.36,194.87,3.17]
[1761309117590,1.9,195.17,194.95,4.6157]
[1761309117790,1.9,195.17,194.92,71.8138]
[1761309117997,1.9,195.17,194.94,4.6162]
[1761309118200,1.9,195.17,194.95,3.17]
[1761309118396,16.00829977,195.08,194.84,3.17]
[1761309118595,16.00829977,195.08,194.86,71.8365]
[1761309118797,16.00829977,195.08,194.85,3.17]
[1761309118997,1.9,195.07,194.85,3.17]
[1761309119196,16.00829977,195.14,194.94,71.8055]
[1761309119396,1.9,195.16,194.96,3.37]
[1761309119601,1.9,195.16,194.96,75.1695]
[1761309119801,1.9,195.16,194.99,4.6148]
[1761309119996,1.72,195.25,195.03,75.1443]
[1761309120193,16.00829977,195.25,195.08,71.7559]
[1761309120400,16.00829977,195.31,195.09,3.37]
[1761309120707,16.00829977,195.25,195.08,4.6127]
[1761309120896,16.00829977,195.25,195.02,155.7367]
[1761309120897,16.00829977,195.25,195.02,83.96]
[1761309121103,1.72,195.18,194.91,3.37]
[1761309121403,1.72,195.18,194.92,71.8148]
[1761309121705,16.00829977,195.16,195.0,4.6146]
[1761309121898,16.00829977,195.22,195.0,4.6146]
[1761309122201,16.00829977,195.55,195.22,3.17]
[1761309122500,16.00829977,195.36,195.04,3.17]
[1761309122694,1.66,195.35,195.06,71.7633]
[1761309122901,1.66,195.42,195.13,71.7371]
[1761309123096,1.66,195.42,195.2,71.7106]
[1761309123298,1.66,195.42,195.2,3.17]
[1761309123497,1.66,195.5,195.23,71.7009]
[1761309123698,1.66,195.5,195.23,3.17]
[1761309123893,1.66,195.47,195.07,71.7591]
[1761309124093,1.66,195.41,195.13,71.7372]
[1761309124294,1.66,195.41,195.17,4.6106]
[1761309124500,1.66,195.41,195.17,171.71039977]
[1761309124798,1.66,195.41,195.16,19.17829977]
[1761309125001,1.66,195.39,195.11,71.7439]
[1761309125210,1.66,195.39,195.12,74.9109]
[1761309125400,1.66,195.39,195.15,71.7303]
[1761309125595,1.66,195.39,195.07,71.7593]
[1761309125802,1.66,195.38,195.08,4.6127]
[1761309126104,1.66,195.32,195.01,101.88502891]
[1761309126298,1.66,195.28,195.02,4.6143]
[1761309126504,1.66,195.28,195.01,101.88502891]
[1761309126809,124.0,195.44,195.01,106.49932891]
[1761309126810,1.66,195.22,195.01,106.49932891]
[1761309127002,1.66,195.22,195.01,101.88502891]
[1761309127901,1.66,195.31,195.06,4.6132]
[1761309128106,1.66,195.31,195.06,3.17]
[1761309128307,17.66829977,195.4,195.13,71.7374]
[1761309128508,17.66829977,195.4,195.18,4.6104]
[1761309128509,1.66,195.4,195.18,4.6104]
[1761309128710,1.66,195.4,195.17,3.17]
[1761309129015,1.66,195.46,195.16,83.98]
[1761309129217,1.66,195.45,195.16,87.15]
[1761309129415,1.66,195.45,195.16,91.7608]
[1761309129716,1.66,195.33,195.06,3.17]
[1761309129908,1.66,195.33,195.11,4.6121]
[1761309130213,1.66,195.44,195.15,71.7296]
[1761309130405,16.00829977,195.5,195.27,4.6082]
[1761309130604,16.00829977,195.51,195.27,4.6082]
[1761309130810,1.66,195.49,195.27,4.6082]
[1761309131012,1.66,195.49,195.26,3.17]
[1761309131316,1.66,195.49,195.28,3.17]
[1761309131502,17.66829977,195.58,195.33,4.6069]
[1761309131707,1.66,195.57,195.33,4.6069]
[1761309132014,1.66,195.57,195.37,4.6059]
[1761309132209,1.66,195.57,195.3,3.17]
[1761309132713,1.66,195.44,195.2,74.8808]
[1761309133008,16.00829977,195.42,195.21,3.17]
[1761309133612,17.66829977,195.52,195.27,74.8558]
[1761309133907,1.66,195.52,195.32,71.6648]
[1761309134112,17.66829977,195.6,195.38,7.7756]
[1761309134307,1.66,195.59,195.38,3.17]
[1761309134609,10.63689,195.7,195.26,4.6085]
[1761309134610,1.66,195.47,195.26,4.6085]
[1761309135013,17.66829977,195.57,195.34,4.6065]
[1761309135210,1.66,195.57,195.34,3.17]
[1761309135717,1.66,195.52,195.3,4.6076]
[1761309136311,1.66,195.62,195.38,71.6456]
[1761309136520,10.63689,195.7,195.47,3.17]
[1761309136702,10.63689,195.7,195.51,4.6026]
[1761309136901,12.29689,195.7,195.51,62.0]
[1761309137305,16.00829977,195.68,195.42,3.17]
[1761309137501,1.66,195.6,195.34,71.6583]
[1761309137712,1.66,195.6,195.33,3.17]
[1761309137713,1.66,195.6,195.38,3.17]
[1761309137907,1.66,195.69,195.44,71.6218]
[1761309138209,1.66,195.69,195.46,3.17]
[1761309138410,16.00829977,195.65,195.46,3.17]
[1761309138605,10.63689,195.7,195.46,3.17]
[1761309139115,10.63689,195.7,195.48,3.17]
[1761309139509,10.63689,195.7,195.5,4.6028]
[1761309139908,10.63689,195.7,195.5,7.7728]
[1761309140104,10.63689,195.7,195.45,83.94]
[1761309140105,10.63689,195.7,195.53,3.17]
[1761309140308,10.63689,195.7,195.54,62.0]
[1761309140509,10.63689,195.7,195.54,65.17]
[1761309140812,10.63689,195.7,195.56,3.17]
[1761309141208,10.63689,195.7,195.57,4.601]
[1761309141407,10.63689,195.7,195.58,3.17]
[1761309141610,10.63689,195.7,195.54,62.0]
[1761309141805,10.63689,195.7,195.54,65.17]
[1761309142006,10.63689,195.7,195.46,3.17]
[1761309142215,10.63689,195.7,195.56,4.6014]
[1761309142814,10.63689,195.7,195.53,3.17]
[1761309143210,10.63689,195.7,195.54,4.6018]
[1761309143412,10.63689,195.7,195.53,3.17]
[1761309144124,10.63689,195.7,195.57,3.17]
[1761309144317,1.66,195.83,195.61,3.17]
[1761309144518,1.66,195.83,195.61,87.03]
[1761309144714,3.03,195.91,195.62,3.17]
[1761309144918,3.03,195.91,195.69,16.00829977]
[1761309145427,3.03,195.91,195.7,4.5981]
[1761309145816,3.03,196.01,195.76,7.7666]
[1761309146121,3.03,196.01,195.81,19.17829977]
[1761309146330,3.03,196.01,195.82,4.5951]
[1761309146623,3.03,196.09,195.84,16.00829977]
[1761309146919,3.03,196.09,195.86,16.00829977]
[1761309147127,3.03,196.09,195.87,3.17]
[1761309147312,7.619,196.09,195.82,16.00829977]
[1761309147519,3.03,196.08,195.81,16.00829977]
[1761309147719,3.03,196.08,195.81,19.17829977]
[1761309147915,71.3992,196.05,195.77,16.00829977]
[1761309148221,3.03,196.02,195.72,3.17]
[1761309148421,3.03,195.99,195.76,16.00829977]
[1761309148628,3.03,195.99,195.76,19.17829977]
[1761309149022,3.03,195.98,195.7,16.00829977]
[1761309149227,3.03,195.98,195.67,3.17]
[1761309149430,3.06,195.94,195.68,7.8386]
[1761309149622,3.06,195.94,195.71,16.00829977]
[1761309149814,3.06,195.94,195.69,3.24]
[1761309150015,3.06,195.92,195.69,3.24]
[1761309150328,71.4356,195.96,195.61,3.24]
[1761309150329,71.4511,195.91,195.61,3.24]
[1761309150631,3.06,195.73,195.44,3.24]
[1761309150927,3.06,195.73,195.4,102.11510904]
[1761309150928,3.06,195.73,195.46,3.24]
[1761309151126,3.06,195.73,195.5,3.24]
[1761309151525,3.06,195.82,195.55,3.24]
[1761309151922,3.06,195.8,195.47,103.02829977]
[1761309152223,3.06,195.73,195.48,3.24]
[1761309152621,3.06,195.71,195.48,3.24]
[1761309152920,3.06,195.71,195.44,83.78]
[1761309153125,3.06,195.69,195.44,87.02]
[1761309153629,3.06,195.67,195.44,83.78]
[1761309153824,3.06,195.67,195.41,16.00829977]
[1761309154026,3.06,195.67,195.39,4.6052]
[1761309154231,3.06,195.67,195.42,3.24]
[1761309154533,3.06,195.67,195.33,83.8]
[1761309154534,3.06,195.61,195.33,3.24]
[1761309154724,3.06,195.56,195.33,3.24]
[1761309155322,3.06,195.65,195.36,3.24]
[1761309155621,3.06,195.65,195.43,4.6044]
[1761309155826,3.06,195.65,195.43,7.8444]
[1761309156024,3.06,195.65,195.34,19.24829977]
[1761309156221,3.06,195.65,195.36,3.24]
[1761309156424,3.06,195.65,195.4,3.24]
[1761309156932,3.06,195.65,195.42,3.24]
[1761309158131,3.06,195.65,195.46,3.24]
[1761309158431,3.06,195.65,195.47,62.0]
[1761309158829,3.06,195.65,195.46,3.24]
[1761309159234,3.06,195.72,195.46,3.24]
[1761309159933,3.06,195.72,195.48,3.24]
[1761309160236,3.06,195.72,195.51,3.24]
[1761309160732,3.06,195.68,195.33,3.24]
[1761309160933,3.06,195.68,195.36,3.24]
[1761309161234,3.06,195.68,195.42,4.6047]
[1761309161533,3.06,195.68,195.41,3.24]
[1761309161833,3.06,195.67,195.41,3.24]
[1761309162136,3.06,195.67,195.41,7.845]
[1761309162341,3.06,195.66,195.41,3.24]
[1761309162636,3.06,195.65,195.34,16.00829977]
[1761309162839,3.06,195.64,195.35,3.24]
[1761309163034,83.82,195.74,195.22,3.24]
[1761309163035,3.06,195.59,195.22,3.24]
[1761309163342,3.06,195.59,195.34,3.24]
[1761309163634,3.06,195.59,195.36,4.606]
[1761309164035,3.06,195.59,195.34,3.24]
[1761309164240,3.06,195.59,195.2,71.7072]
[1761309164241,3.06,195.57,195.26,3.24]
[1761309164428,3.06,195.55,195.35,20.61449977]
[1761309164637,3.06,195.55,195.36,3.24]
[1761309165441,3.06,195.55,195.29,3.24]
[1761309165831,3.06,195.55,195.31,7.8472]
[1761309166238,3.06,195.55,195.31,3.24]
[1761309168136,3.06,195.55,195.32,66.6069]
[1761309168341,3.06,195.55,195.31,3.24]
[1761309168541,18.61,195.55,195.26,4.6084]
[1761309168744,3.06,195.51,195.25,3.24]
[1761309168938,3.06,195.5,195.25,3.24]
[1761309169334,3.06,195.5,195.25,7.8486]
[1761309169947,3.06,195.5,195.28,3.24]
[1761309170139,82.82,195.59,195.3,3.24]
[1761309170140,3.06,195.58,195.3,3.24]
[1761309170446,3.06,195.58,195.39,7.8453]
[1761309170642,16.00829977,195.66,195.4,3.24]
[1761309170848,3.06,195.65,195.4,3.24]
[1761309171245,3.06,195.65,195.41,65.24]
[1761309171446,3.06,195.65,195.42,3.24]
[1761309172242,3.06,195.65,195.45,4.6038]
[1761309172547,3.06,195.65,195.46,3.24]
[1761309173343,3.06,195.65,195.42,3.24]